[Event "MČR 2022 rapid"]
[Site "Turnov, Czech Republic"]
[Date "2022.09.11"]
[Round "4.4"]
[White "Klement, Lukáš"]
[Black "Priehoda, Vítězslav"]
[Result "0-1"]
[TimeControl "2x 15 min + 5s/move"]
[WhiteElo "2264"]
[BlackElo "2292"]

1. d4 {[%clk 00:15:09]} c5 {[%clk 00:15:09]} 2. dxc5 {[%clk 00:15:01]} e6
{[%clk 00:15:13]} 3. c4 {[%clk 00:14:49]} Nf6 {[%clk 00:14:44]} 4. Nf3 {[%clk
00:14:49]} {[%emt 00:00:09]} Bxc5 {[%clk 00:14:46]} 5. e3 {[%clk 00:14:41]} O-O
{[%clk 00:14:22]} {[%emt 00:00:20]} 6. Be2 {[%clk 00:14:42]} {[%emt 00:00:06]}
d5 {[%clk 00:14:23]} {[%emt 00:00:05]} 7. O-O {[%clk 00:14:40]} {[%emt
00:00:05]} dxc4 {[%clk 00:14:16]} {[%emt 00:00:11]} 8. Bxc4 {[%clk 00:14:15]}
{[%emt 00:00:29]} a6 {[%clk 00:14:20]} 9. a3 {[%clk 00:12:32]} {[%emt
00:01:54]} b5 {[%clk 00:14:23]} 10. Be2 {[%clk 00:12:36]} Bb7 {[%clk 00:13:19]}
{[%emt 00:01:14]} 11. b4 {[%clk 00:11:26]} {[%emt 00:01:10]} Be7 {[%clk
00:13:12]} {[%emt 00:00:12]} 12. Bb2 {[%clk 00:10:41]} {[%emt 00:00:50]} Nbd7
{[%clk 00:13:15]} {[%emt 00:00:11]} 13. Nbd2 {[%clk 00:09:42]} {[%emt
00:00:58]} Nb6 {[%clk 00:11:45]} {[%emt 00:01:35]} 14. Rc1 {[%clk 00:09:14]}
{[%emt 00:00:29]} Na4 {[%clk 00:11:36]} {[%emt 00:00:14]} 15. Ba1 {[%clk
00:08:37]} {[%emt 00:00:43]} Rc8 {[%clk 00:11:29]} {[%emt 00:00:11]} 16. Nb3
{[%clk 00:07:13]} {[%emt 00:01:29]} Ne4 {[%clk 00:08:35]} {[%emt 00:02:59]} 17.
Qxd8 {[%clk 00:04:45]} {[%emt 00:02:46]} Rfxd8 {[%clk 00:08:36]} 18. Rxc8
{[%clk 00:04:06]} {[%emt 00:00:40]} Rxc8 {[%clk 00:08:24]} {[%emt 00:00:21]} 19.
Rc1 {[%clk 00:03:43]} {[%emt 00:00:24]} Rxc1+ {[%clk 00:05:43]} {[%emt
00:02:40]} 20. Nxc1 {[%clk 00:03:47]} f6 {[%clk 00:04:24]} {[%emt 00:01:26]} 21.
Nd4 {[%clk 00:03:23]} {[%emt 00:00:29]} Kf7 {[%clk 00:03:44]} {[%emt 00:00:44]}
22. Bd3 {[%clk 00:03:17]} {[%emt 00:00:11]} g6 {[%clk 00:03:39]} {[%emt
00:00:16]} 23. Nce2 {[%clk 00:02:27]} {[%emt 00:00:54]} e5 {[%clk 00:03:27]}
{[%emt 00:00:13]} 24. Nc2 {[%clk 00:02:12]} {[%emt 00:00:20]} Nd2 {[%clk
00:03:02]} {[%emt 00:00:29]} 25. Nc3 {[%clk 00:01:49]} {[%emt 00:00:28]} Nxc3
{[%clk 00:01:28]} {[%emt 00:01:43]} 26. Bxc3 {[%clk 00:01:52]} Ne4 {[%clk
00:01:20]} {[%emt 00:00:14]} 27. Be1 {[%clk 00:01:42]} {[%emt 00:00:21]} Bd5
{[%clk 00:01:09]} {[%emt 00:02:05]} 28. Kf1 {[%clk 00:01:33]} {[%emt 00:03:51]}
Nd6 {[%clk 00:01:08]} 29. f3 {[%clk 00:01:34]} e4 {[%clk 00:00:41]} 30. fxe4
{[%clk 00:01:18]} Nxe4 {[%clk 00:00:43]} 31. Nd4 {[%clk 00:01:15]} {[%emt
00:00:08]} Bd6 {[%clk 00:00:45]} 32. g3 {[%clk 00:01:19]} Be5 {[%clk 00:00:40]}
33. Ke2 {[%clk 00:01:17]} h5 {[%clk 00:00:39]} 34. Bc2 {[%clk 00:00:49]} {[%emt
00:00:05]} Ke7 {[%clk 00:00:26]} 35. a4 {[%clk 00:00:42]} bxa4 {[%clk
00:00:14]} 36. Bxa4 {[%clk 00:00:46]} Bc4+ {[%clk 00:00:13]} 37. Kf3 {[%clk
00:00:34]} Bd5 {[%clk 00:00:14]} 38. Ke2 {[%clk 00:00:38]} Bc4+ {[%clk
00:00:17]} 39. Kf3 {[%clk 00:00:42]} Ng5+ {[%clk 00:00:17]} 40. Kf2 {[%clk
00:00:38]} Kd6 {[%clk 00:00:18]} 41. Bc2 {[%clk 00:00:40]} f5 {[%clk 00:00:20]}
42. Bc3 {[%clk 00:00:31]} Ne4+ {[%clk 00:00:18]} 43. Bxe4 fxe4 {[%clk
00:00:22]} 44. Bd2 {[%clk 00:00:20]} Kd5 {[%clk 00:00:25]} 45. Bc3 {[%clk
00:00:17]} Bd3 {[%clk 00:00:27]} 46. Ke1 {[%clk 00:00:19]} h4 {[%clk 00:00:26]}
47. Kf2 {[%clk 00:00:15]} {[%emt 00:00:20]} hxg3+ {[%clk 00:00:28]} 48. hxg3
{[%clk 00:00:19]} Kc4 {[%clk 00:00:30]} {[%emt 00:00:05]} 49. Bd2 {[%clk
00:00:23]} Bd6 {[%clk 00:00:27]} 50. Nc6 {[%clk 00:00:27]} Bc2 {[%clk
00:00:19]} 51. g4 {[%clk 00:00:23]} Ba4 {[%clk 00:00:23]} 52. Na5+ {[%clk
00:00:12]} {[%emt 00:00:05]} Kb5 {[%clk 00:00:22]} {[%emt 00:00:05]} 53. Nb7
{[%clk 00:00:13]} Bxb4 {[%clk 00:00:25]} {[%emt 00:00:10]} 54. Bxb4 {[%clk
00:00:17]} Kxb4 {[%clk 00:00:28]} 55. Nd6 {[%clk 00:00:21]} Bc2 {[%clk
00:00:18]} {[%emt 00:00:06]} 56. Ke1 {[%clk 00:00:13]} {[%emt 00:00:12]} a5
{[%clk 00:00:18]} {[%emt 00:00:08]} 57. Kd2 {[%clk 00:00:17]} Bd3 {[%clk
00:00:21]} 58. Kc1 {[%clk 00:00:11]} {[%emt 00:00:10]} a4 {[%clk 00:00:17]}
{[%emt 00:00:10]} 59. Kb2 {[%clk 00:00:14]} {[%emt 00:00:06]} a3+ {[%clk
00:00:21]} 60. Ka2 {[%clk 00:00:18]} Bc4+ {[%clk 00:00:21]} {[%emt 00:00:04]}
61. Ka1 {[%clk 00:00:21]} Bd5 {[%clk 00:00:25]} {[%emt 00:00:10]} 62. Ne8
{[%clk 00:00:13]} {[%emt 00:00:06]} Kc3 {[%clk 00:00:22]} {[%emt 00:00:05]} 63.
Nf6 {[%clk 00:00:16]} {[%emt 00:00:06]} Bc6 {[%clk 00:00:20]} {[%emt 00:00:06]}
64. g5 {[%clk 00:00:19]} {[%emt 00:00:05]} Kd3 {[%clk 00:00:24]} 65. Ng4 {[%clk
00:00:23]} Be8 {[%clk 00:00:16]} {[%emt 00:00:10]} 66. Ka2 {[%clk 00:00:26]}
{[%emt 00:00:06]} Ke2 {[%clk 00:00:17]} {[%emt 00:00:05]} 67. Nf6 {[%clk
00:00:30]} Bf7+ {[%clk 00:00:21]} 68. Kxa3 {[%clk 00:00:34]} Kxe3 {[%clk
00:00:25]} 69. Kb2 {[%clk 00:00:30]} {[%emt 00:00:15]} Kf4 {[%clk 00:00:25]} 70.
Kc3 {[%clk 00:00:34]} Kxg5 {[%clk 00:00:28]} {[%emt 00:00:04]} 71. Nxe4+ Kf4
{[%clk 00:00:30]} {[%emt 00:00:04]} 72. Kd4 {[%clk 00:00:41]} {[%emt 00:00:05]}
Be6 {[%clk 00:00:25]} {[%emt 00:00:06]} 73. Nf6 {[%clk 00:00:13]} {[%emt
00:00:36]} g5 {[%clk 00:00:13]} {[%emt 00:00:12]} 74. Nh5 {[%clk 00:00:12]}
{[%emt 00:00:07]} Kg4 {[%clk 00:00:14]} {[%emt 00:00:04]} 75. Nf6 {[%clk
00:00:10]} {[%emt 00:00:12]} Kf5 {[%clk 00:00:19]} 76. Nh5 {[%clk 00:00:09]}
Bf7 {[%clk 00:00:20]} {[%emt 00:00:05]} 77. Ng3+ {[%clk 00:00:12]} {[%emt
00:00:08]} Kf4 {[%clk 00:00:23]} 78. Ne4 {[%clk 00:00:12]} {[%emt 00:00:08]} g4
{[%clk 00:00:26]} 79. Nf2 {[%clk 00:00:08]} {[%emt 00:00:09]} g3 {[%clk
00:00:28]} 80. Nh3 {[%clk 00:00:12]} Kg4 {[%clk 00:00:25]} {[%emt 00:00:06]} 81.
Ng1 {[%clk 00:00:16]} Kf4 {[%clk 00:00:18]} {[%emt 00:00:15]} 82. Kd3 {[%clk
00:00:20]} Bh5 {[%clk 00:00:17]} {[%emt 00:00:15]} 83. Kd2 {[%clk 00:00:21]}
Bg4 {[%clk 00:00:20]} 84. Kd3 {[%clk 00:00:16]} {[%emt 00:00:08]} g2 {[%clk
00:00:20]} {[%emt 00:00:10]} 85. Kd2 {[%clk 00:00:16]} Kg3 {[%clk 00:00:22]}
{[%emt 00:00:05]} 86. Ke3 {[%clk 00:00:09]} {[%emt 00:00:09]} Bh5 {[%clk
00:00:21]} {[%emt 00:00:11]} 87. Nh3 {[%clk 00:00:07]} {[%emt 00:00:04]} Kxh3
{[%clk 00:00:24]} 88. Kf2 {[%clk 00:00:11]} Kh2 {[%clk 00:00:26]} {[%emt
00:00:04]} 0-1

[Event "MČR 2022 rapid"]
[Site "Turnov, Czech Republic"]
[Date "2022.09.11"]
[Round "4.5"]
[White "Polák, Tomáš"]
[Black "Vykouk, Jan"]
[Result "1/2-1/2"]
[TimeControl "2x 15 min + 5s/move"]
[WhiteElo "2487"]
[BlackElo "2417"]

1. Nf3 {[%clk 00:15:07]} {[%emt 00:00:05]} Nf6 {[%clk 00:15:09]} {[%emt
00:00:09]} 2. c4 {[%clk 00:15:11]} g6 {[%clk 00:14:07]} {[%emt 00:01:05]} 3.
Nc3 {[%clk 00:15:13]} Bg7 {[%clk 00:14:10]} {[%emt 00:00:14]} 4. e4 {[%clk
00:15:15]} d6 {[%clk 00:14:14]} 5. d4 {[%clk 00:15:19]} {[%emt 00:00:05]} O-O
{[%clk 00:14:16]} 6. Be2 {[%clk 00:15:22]} Nbd7 {[%clk 00:14:20]} 7. O-O {[%clk
00:15:15]} {[%emt 00:00:04]} e5 {[%clk 00:14:23]} {[%emt 00:00:05]} 8. Be3
{[%clk 00:14:33]} {[%emt 00:00:45]} Qe7 {[%clk 00:14:23]} {[%emt 00:00:11]} 9.
dxe5 {[%clk 00:13:25]} {[%emt 00:01:07]} dxe5 {[%clk 00:12:33]} {[%emt
00:01:55]} 10. Qc2 {[%clk 00:12:47]} {[%emt 00:00:43]} c6 {[%clk 00:12:34]}
{[%emt 00:00:07]} 11. Rad1 {[%clk 00:11:46]} {[%emt 00:01:07]} Re8 {[%clk
00:12:30]} {[%emt 00:00:05]} 12. a3 {[%clk 00:11:00]} {[%emt 00:00:56]} Nh5
{[%clk 00:12:08]} {[%emt 00:00:22]} 13. b4 {[%clk 00:10:23]} {[%emt 00:00:42]}
Nf4 {[%clk 00:12:04]} {[%emt 00:00:09]} 14. c5 {[%clk 00:10:16]} {[%emt
00:00:12]} Nxe2+ {[%clk 00:11:31]} {[%emt 00:00:38]} 15. Qxe2 {[%clk 00:10:13]}
{[%emt 00:00:08]} b6 {[%clk 00:10:59]} {[%emt 00:00:37]} 16. Rd6 {[%emt
00:00:55]} bxc5 {[%clk 00:09:09]} {[%emt 00:01:46]} 17. bxc5 {[%clk 00:09:35]}
{[%emt 00:00:05]} Nb8 {[%clk 00:08:58]} {[%emt 00:00:13]} 18. Rfd1 {[%clk
00:09:20]} {[%emt 00:00:20]} f6 {[%clk 00:07:53]} {[%emt 00:01:10]} 19. h3
{[%clk 00:07:21]} {[%emt 00:02:04]} Bf8 {[%clk 00:07:53]} {[%emt 00:00:06]} 20.
Qc2 {[%clk 00:06:49]} {[%emt 00:00:36]} Be6 {[%clk 00:07:40]} {[%emt 00:00:17]}
21. Rb1 {[%clk 00:05:58]} {[%emt 00:01:10]} Qc7 {[%clk 00:07:02]} {[%emt
00:00:30]} 22. Rdd1 {[%clk 00:05:36]} {[%emt 00:00:41]} Nd7 {[%clk 00:07:00]}
23. Na4 {[%clk 00:05:16]} {[%emt 00:00:23]} Rab8 {[%clk 00:06:57]} {[%emt
00:00:09]} 24. Nd2 {[%clk 00:05:11]} {[%emt 00:00:05]} Rxb1 {[%clk 00:06:47]}
{[%emt 00:04:44]} 25. Rxb1 {[%clk 00:05:09]} {[%emt 00:00:17]} Rb8 {[%clk
00:06:49]} 26. Rd1 {[%clk 00:04:30]} Qa5 {[%clk 00:06:25]} 27. g4 {[%clk
00:03:54]} g5 {[%clk 00:05:12]} 28. Kg2 {[%clk 00:03:46]} {[%emt 00:00:04]} Qa6
{[%clk 00:05:00]} 29. Kf3 {[%clk 00:03:28]} Be7 {[%clk 00:03:57]} {[%emt
00:00:38]} 30. Nc4 {[%clk 00:02:20]} {[%emt 00:01:08]} Bf8 {[%clk 00:03:04]}
{[%emt 00:01:00]} 31. Rc1 {[%clk 00:02:19]} {[%emt 00:00:06]} Bxc4 {[%clk
00:02:47]} {[%emt 00:00:26]} 32. Qxc4+ {[%clk 00:02:22]} Qxc4 {[%clk 00:02:50]}
33. Rxc4 {[%clk 00:02:27]} Rb3 {[%clk 00:02:54]} 34. Rb4 {[%clk 00:01:18]}
{[%emt 00:01:19]} Rxa3 {[%clk 00:02:57]} 35. Ke2 {[%clk 00:01:19]} {[%emt
00:00:04]} a5 {[%clk 00:02:53]} {[%emt 00:00:12]} 36. Rb7 {[%clk 00:01:20]}
{[%emt 00:00:04]} Rxa4 {[%clk 00:02:52]} {[%emt 00:00:05]} 37. Rxd7 {[%clk
00:01:23]} Rxe4 {[%clk 00:02:26]} {[%emt 00:00:28]} 38. Rc7 {[%clk 00:01:18]}
{[%emt 00:00:15]} Ra4 {[%clk 00:00:57]} {[%emt 00:01:31]} 39. Rxc6 {[%clk
00:01:20]} {[%emt 00:00:05]} Kf7 {[%clk 00:01:01]} 40. Rc7+ {[%clk 00:01:15]}
{[%emt 00:00:06]} Ke6 {[%clk 00:00:55]} {[%emt 00:00:12]} 41. Rxh7 {[%clk
00:01:10]} {[%emt 00:00:10]} e4 {[%clk 00:00:56]} {[%emt 00:00:05]} 42. Ra7
{[%clk 00:01:07]} {[%emt 00:00:07]} Ra2+ {[%clk 00:00:58]} {[%emt 00:00:09]} 43.
Kd1 {[%clk 00:01:09]} Kd5 {[%clk 00:00:48]} {[%emt 00:00:14]} 44. Rd7+ {[%clk
00:00:59]} {[%emt 00:00:11]} Ke6 {[%clk 00:00:23]} {[%emt 00:00:37]} 45. Ra7
{[%clk 00:00:54]} {[%emt 00:00:05]} Kd5 {[%clk 00:00:13]} {[%emt 00:00:14]} 46.
Rd7+ {[%clk 00:00:29]} {[%emt 00:00:35]} Ke6 {[%clk 00:00:17]} 47. Ra7 {[%clk
00:00:26]} {[%emt 00:00:15]} Ke5 1/2-1/2

[Event "MČR 2022 rapid"]
[Site "Turnov, Czech Republic"]
[Date "2022.09.11"]
[Round "4.6"]
[White "Kraus, Tomáš"]
[Black "Němec, Jáchym"]
[Result "1/2-1/2"]
[TimeControl "2x 15 min + 5s/move"]
[WhiteElo "2395"]
[BlackElo "2057"]

1. d4 {[%clk 00:15:09]} d5 {[%clk 00:15:06]} {[%emt 00:00:05]} 2. c4 {[%clk
00:15:00]} {[%emt 00:00:14]} c6 {[%clk 00:15:10]} {[%emt 00:00:04]} 3. Nc3
{[%clk 00:14:53]} {[%emt 00:00:10]} Nf6 {[%clk 00:15:13]} 4. e3 {[%clk
00:14:40]} {[%emt 00:00:17]} Bf5 {[%clk 00:14:52]} {[%emt 00:00:43]} 5. Nf3
{[%clk 00:14:07]} {[%emt 00:00:22]} e6 {[%clk 00:14:55]} 6. Be2 {[%clk
00:13:38]} {[%emt 00:00:39]} Nbd7 {[%clk 00:14:54]} {[%emt 00:00:05]} 7. Nh4
{[%clk 00:13:14]} {[%emt 00:00:31]} Be4 {[%clk 00:14:49]} {[%emt 00:00:07]} 8.
f3 {[%clk 00:11:50]} {[%emt 00:01:27]} Bg6 {[%clk 00:14:52]} 9. Nxg6 {[%clk
00:11:09]} {[%emt 00:00:47]} hxg6 {[%clk 00:14:55]} 10. f4 {[%clk 00:10:42]}
{[%emt 00:00:39]} Bb4 {[%clk 00:14:08]} {[%emt 00:00:47]} 11. O-O {[%clk
00:09:19]} {[%emt 00:01:29]} Qe7 {[%clk 00:12:18]} {[%emt 00:01:55]} 12. Qb3
{[%clk 00:08:00]} {[%emt 00:01:23]} a5 {[%clk 00:11:28]} {[%emt 00:00:58]} 13.
Bd2 {[%clk 00:06:31]} {[%emt 00:01:34]} O-O {[%clk 00:07:43]} {[%emt 00:03:55]}
14. Bd3 {[%clk 00:05:03]} {[%emt 00:01:29]} Rfb8 {[%clk 00:06:02]} {[%emt
00:01:41]} 15. Qc2 {[%clk 00:04:47]} {[%emt 00:00:22]} Nb6 {[%clk 00:04:13]}
{[%emt 00:01:58]} 16. c5 {[%clk 00:04:09]} {[%emt 00:00:43]} Nbd7 {[%clk
00:04:13]} {[%emt 00:00:04]} 17. Na4 {[%clk 00:02:33]} {[%emt 00:01:38]} Bxd2
{[%clk 00:04:07]} {[%emt 00:00:11]} 18. Qxd2 {[%clk 00:02:37]} b5 {[%clk
00:03:59]} {[%emt 00:00:22]} 19. cxb6 {[%clk 00:02:33]} {[%emt 00:00:08]} Nxb6
{[%clk 00:04:02]} 20. Nxb6 {[%clk 00:02:06]} {[%emt 00:00:34]} Rxb6 {[%clk
00:04:06]} 21. Rac1 {[%clk 00:01:45]} {[%emt 00:00:19]} a4 {[%clk 00:04:01]}
{[%emt 00:00:16]} 22. Rc2 {[%clk 00:01:34]} {[%emt 00:00:12]} Rab8 {[%clk
00:03:23]} {[%emt 00:00:42]} 23. Rf2 {[%clk 00:00:53]} {[%emt 00:00:45]} Qb7
{[%clk 00:03:19]} {[%emt 00:00:09]} 24. Qc1 {[%clk 00:00:44]} {[%emt 00:00:15]}
Ne8 {[%clk 00:03:12]} {[%emt 00:00:12]} 25. h3 {[%clk 00:00:33]} {[%emt
00:00:16]} Nd6 {[%clk 00:03:14]} {[%emt 00:00:05]} 26. Kh2 {[%clk 00:00:27]}
{[%emt 00:00:08]} Ne8 {[%clk 00:02:01]} {[%emt 00:01:18]} 27. Qd2 {[%clk
00:00:30]} {[%emt 00:00:07]} Nf6 {[%clk 00:02:04]} 28. Qa5 {[%clk 00:00:31]}
{[%emt 00:00:04]} Ra8 {[%clk 00:02:04]} {[%emt 00:00:16]} 29. Qc3 {[%clk
00:00:34]} Nd7 {[%clk 00:02:04]} 30. Qa3 {[%clk 00:00:29]} {[%emt 00:00:05]}
Nf6 {[%clk 00:01:23]} {[%emt 00:00:44]} 31. Kg1 {[%clk 00:00:28]} {[%emt
00:00:07]} Ne8 {[%clk 00:00:53]} {[%emt 00:00:39]} 32. Rfe2 {[%clk 00:00:31]}
f5 {[%clk 00:00:56]} 33. h4 {[%clk 00:00:18]} {[%emt 00:00:26]} Kf7 {[%clk
00:00:59]} 34. g3 {[%clk 00:00:21]} Qe7 {[%clk 00:00:51]} {[%emt 00:00:08]} 35.
Qxe7+ {[%clk 00:00:16]} {[%emt 00:00:10]} Kxe7 {[%clk 00:00:55]} 36. Kf1 {[%clk
00:00:20]} Kd7 {[%clk 00:00:55]} {[%emt 00:00:15]} 37. Ke1 {[%clk 00:00:21]}
Nf6 {[%clk 00:00:52]} {[%emt 00:00:06]} 38. Kd1 {[%clk 00:00:21]} {[%emt
00:00:06]} Kd6 {[%clk 00:00:56]} 39. Kc1 {[%clk 00:00:21]} {[%emt 00:00:09]}
Nd7 {[%clk 00:00:52]} {[%emt 00:00:04]} 40. Rc3 {[%clk 00:00:23]} {[%emt
00:00:04]} c5 {[%clk 00:00:52]} {[%emt 00:00:05]} 41. dxc5+ {[%clk 00:00:14]}
{[%emt 00:00:16]} Nxc5 {[%clk 00:00:56]} 42. Rec2 {[%clk 00:00:18]} Ra5 {[%clk
00:00:58]} {[%emt 00:00:13]} 43. Kd2 {[%clk 00:00:18]} Rb4 {[%clk 00:00:53]}
{[%emt 00:00:05]} 44. Ra3 {[%clk 00:00:18]} {[%emt 00:00:06]} Rb8 {[%clk
00:00:34]} {[%emt 00:00:20]} 45. Rac3 {[%clk 00:00:21]} {[%emt 00:00:13]} Rb6
{[%clk 00:00:30]} 46. Ke2 {[%clk 00:00:23]} {[%emt 00:00:13]} Nxd3 {[%clk
00:00:28]} 47. Rxd3 {[%clk 00:00:25]} Rab5 {[%clk 00:00:32]} 48. Rdd2 {[%clk
00:00:28]} {[%emt 00:00:04]} Rb4 {[%clk 00:00:36]} 49. Kd1 {[%clk 00:00:27]}
{[%emt 00:00:12]} e5 {[%clk 00:00:29]} {[%emt 00:00:12]} 50. Kc1 {[%clk
00:00:27]} e4 {[%clk 00:00:29]} {[%emt 00:00:09]} 51. Rc8 {[%clk 00:00:26]}
Rc6+ {[%clk 00:00:24]} {[%emt 00:00:16]} 52. Rxc6+ {[%clk 00:00:26]} Kxc6
{[%clk 00:00:28]} 53. Rc2+ {[%clk 00:00:21]} {[%emt 00:00:11]} Kd7 {[%clk
00:00:24]} {[%emt 00:00:07]} 54. Rc5 {[%clk 00:00:23]} {[%emt 00:00:06]} Kd6
{[%clk 00:00:28]} 55. Rc8 {[%clk 00:00:23]} {[%emt 00:00:04]} d4 {[%clk
00:00:17]} {[%emt 00:00:15]} 56. Rd8+ {[%clk 00:00:19]} {[%emt 00:00:13]} Kc5
{[%clk 00:00:20]} 57. Rc8+ {[%clk 00:00:22]} Kd5 {[%clk 00:00:22]} {[%emt
00:00:05]} 58. Rd8+ {[%clk 00:00:26]} {[%emt 00:00:05]} Kc5 {[%clk 00:00:25]}
59. Rc8+ {[%clk 00:00:24]} {[%emt 00:00:05]} Kd5 {[%clk 00:00:19]} {[%emt
00:00:08]} 60. Rd8+ {[%clk 00:00:28]} 1/2-1/2